bitfinex/quotes_BTCUSD_20250225
["timestamp","ask_amount","ask_price","bid_price","bid_amount"]
[1740471714929,0.05556657,90205.0,90167.0,2e-08]
[1740471715130,0.05543433,90203.0,90164.0,0.00155242]
[1740471715326,0.05507076,90206.0,90165.0,2e-08]
[1740471715631,0.05507076,90206.0,90166.0,0.00155241]
[1740471715831,0.05507076,90206.0,90167.0,2e-08]
[1740471716028,0.05507076,90206.0,90169.0,0.01454085]
[1740471716232,0.05507076,90206.0,90171.0,0.01454085]
[1740471716476,0.05507076,90206.0,90173.0,0.01454085]
[1740471716678,0.05507076,90206.0,90175.0,0.01454085]
[1740471716832,0.05507076,90206.0,90177.0,0.01454085]
[1740471717027,0.05507076,90206.0,90179.0,0.01454085]
[1740471717237,0.08943444,90207.0,90200.0,0.09731337]
[1740471717495,0.08943444,90207.0,90201.0,2e-08]
[1740471718840,0.15,90208.0,90201.0,2e-08]
[1740471719571,0.15,90207.0,90201.0,2e-08]
[1740471720642,0.15,90207.0,90200.0,2e-08]
[1740471720643,0.05507076,90206.0,90200.0,2e-08]
[1740471720899,0.20586583,90207.0,90200.0,2e-08]
[1740471721044,0.20586583,90207.0,90174.0,0.00155239]
[1740471721243,0.20756483,90207.0,90175.0,0.03385091]
[1740471721509,0.20756483,90207.0,90166.0,0.03385091]
[1740471721661,0.20756483,90207.0,90167.0,0.04994415]
[1740471721863,0.20574146,90205.0,90168.0,0.03385091]
[1740471722092,0.20574146,90205.0,90164.0,0.03385091]
[1740471722293,0.20574146,90205.0,90165.0,0.0354034]
[1740471722496,0.20574146,90205.0,90166.0,0.03385091]
[1740471722675,0.20559107,90203.0,90166.0,0.03385091]
[1740471722893,0.076,90204.0,90164.0,0.03385091]
[1740471722894,0.08943444,90197.0,90164.0,0.03385091]
[1740471723099,0.20592216,90196.0,90165.0,0.03540353]
[1740471723279,0.20592216,90196.0,90166.0,0.03385091]
[1740471723684,0.05551508,90194.0,90167.0,0.03385091]
[1740471723884,0.05551508,90194.0,90168.0,0.03385091]
[1740471724082,0.08926735,90195.0,90164.0,0.03385091]
[1740471724281,1.15548169,90197.0,90166.0,0.01454085]
[1740471724468,1.09953679,90197.0,90168.0,0.01454085]
[1740471724672,1.09953679,90197.0,90169.0,0.05454651]
[1740471724877,1.09953679,90197.0,90170.0,0.04839176]
[1740471725104,0.15,90196.0,90172.0,0.01454085]
[1740471725301,0.98870998,90197.0,90174.0,0.01454085]
[1740471725499,0.001699,90207.0,90176.0,0.01454085]
[1740471725699,1.10123579,90207.0,90177.0,0.04185156]
[1740471725912,1.10123579,90207.0,90178.0,0.03385091]
[1740471726437,1.15710162,90207.0,90179.0,0.00155218]
[1740471726642,1.15710162,90207.0,90180.0,0.03385091]
[1740471726848,1.15710162,90207.0,90181.0,0.03385091]
[1740471726999,1.15710162,90207.0,90178.0,0.03385091]
[1740471727200,0.05574146,90205.0,90178.0,0.03385091]
[1740471727941,0.20574146,90205.0,90178.0,0.03385091]
[1740471728724,0.15,90205.0,90178.0,0.03385091]
[1740471729156,0.08943444,90196.0,90178.0,0.03385091]
[1740471729376,0.20551508,90194.0,90141.0,0.0461996]
[1740471729525,0.20551508,90194.0,90142.0,0.00155258]
[1740471729724,0.20551508,90194.0,90143.0,1e-08]
[1740471729960,0.20551508,90194.0,90144.0,0.00155257]
[1740471730218,0.20551508,90194.0,90145.0,1e-08]
[1740471730368,0.05528984,90192.0,90146.0,1e-08]
[1740471730537,0.05528984,90192.0,90147.0,1e-08]
[1740471730732,0.02193811,90191.0,90148.0,1e-08]
[1740471731046,0.05590488,90190.0,90149.0,1e-08]
[1740471731270,0.05590488,90190.0,90150.0,1e-08]
[1740471731480,0.05528984,90192.0,90151.0,0.01454086]
[1740471731687,0.05528984,90192.0,90153.0,0.01454085]
[1740471732012,0.05588037,90193.0,90155.0,0.01454085]
[1740471732215,0.05588037,90193.0,90156.0,0.00155255]
[1740471732410,0.05588037,90193.0,90157.0,0.01454086]
[1740471732620,0.05588037,90193.0,90189.0,2e-08]
[1740471732821,0.15,90194.0,90189.0,2e-08]
[1740471732977,1.09953679,90196.0,90189.0,2e-08]
[1740471733363,0.15,90195.0,90189.0,2e-08]
[1740471733696,0.1362006,90195.0,90189.0,2e-08]
[1740471734542,1.09953679,90196.0,90189.0,2e-08]
[1740471735735,0.15,90195.0,90189.0,2e-08]
[1740471735940,0.10806897,90194.0,90189.0,2e-08]
[1740471736319,0.15,90195.0,90189.0,2e-08]
[1740471736604,0.15,90195.0,90161.0,0.01454085]
[1740471736826,0.15,90195.0,90162.0,1e-08]
[1740471737188,0.15,90195.0,90163.0,1e-08]
[1740471737398,0.15,90195.0,90164.0,1e-08]
[1740471737594,0.10806897,90194.0,90165.0,1e-08]
[1740471737732,0.10806897,90194.0,90166.0,1e-08]
[1740471737928,0.15,90195.0,90167.0,1e-08]
[1740471738298,0.15,90195.0,90159.0,0.01454085]
[1740471738299,0.15,90195.0,90168.0,1e-08]
[1740471738501,0.15,90195.0,90169.0,0.01454086]
[1740471738787,1.09953679,90196.0,90171.0,0.01454085]
[1740471739009,1.09953679,90196.0,90174.0,0.0791]
[1740471739210,0.15,90195.0,90175.0,0.02561229]
[1740471739367,0.15,90195.0,90176.0,1e-08]
[1740471739566,0.15,90195.0,90178.0,0.01454085]
[1740471739789,0.15,90195.0,90180.0,0.01454085]
[1740471740126,0.15,90195.0,90182.0,0.01454085]
[1740471740267,0.15,90195.0,90184.0,0.01454085]
[1740471740470,0.15,90195.0,90185.0,1e-08]
[1740471740814,1.09953679,90196.0,90186.0,0.01454085]
[1740471741016,1.09953679,90196.0,90187.0,1e-08]
[1740471741250,1.09953679,90196.0,90182.0,0.01609291]
[1740471741453,1.09953679,90196.0,90183.0,1e-08]
[1740471741629,0.10806897,90195.0,90175.0,1e-08]
[1740471741805,0.10806897,90195.0,90164.0,0.00155221]
[1740471742130,0.08943444,90195.0,90165.0,1e-08]
[1740471742305,0.08943444,90195.0,90154.0,1e-08]
[1740471742505,0.08943444,90195.0,90155.0,1e-08]
[1740471742706,0.23943444,90195.0,90156.0,1e-08]
[1740471742911,0.23943444,90195.0,90157.0,1e-08]
[1740471743107,0.23943444,90195.0,90158.0,0.0144677]
[1740471743428,0.23943444,90195.0,90159.0,1e-08]
[1740471743650,0.23943444,90195.0,90161.0,0.01454085]
[1740471743803,0.20551508,90194.0,90162.0,0.00155246]
[1740471744008,0.08943444,90185.0,90163.0,1e-08]
[1740471744205,0.15,90184.0,90145.0,0.00155261]
[1740471744414,0.15383743,90184.0,90146.0,1e-08]
[1740471744606,0.15383743,90184.0,90147.0,0.00155265]
[1740471744836,0.15383743,90184.0,90148.0,1e-08]
[1740471745010,0.15,90182.0,90149.0,1e-08]
[1740471745358,0.00383743,90181.0,90150.0,0.01454086]
[1740471745574,0.00383743,90181.0,90140.0,0.1246]
[1740471745575,0.00383743,90181.0,90151.0,0.00155265]
[1740471745706,0.00383743,90181.0,90165.0,0.0008481]
[1740471745906,0.00383743,90181.0,90166.0,1e-08]
[1740471746134,0.15,90180.0,90166.0,1e-08]
[1740471746332,0.0550064,90181.0,90166.0,1e-08]
[1740471746829,0.05564136,90183.0,90166.0,1e-08]
[1740471747594,0.20527832,90184.0,90166.0,1e-08]
[1740471748794,0.14988513,90184.0,90166.0,1e-08]
[1740471748964,0.14988513,90184.0,90166.0,0.00155247]
[1740471749124,1.09953679,90185.0,90167.0,1e-08]
[1740471749325,1.09953679,90185.0,90168.0,0.00155238]
[1740471749664,1.09953679,90185.0,90169.0,0.01454086]
[1740471749844,1.09953679,90185.0,90171.0,0.01454085]
[1740471750025,1.09953679,90185.0,90172.0,0.00155234]
[1740471750223,0.15,90184.0,90173.0,0.01454086]
[1740471750421,0.15,90184.0,90175.0,0.01454085]
[1740471750661,0.15,90184.0,90176.0,0.0015523]
[1740471750864,0.15,90184.0,90177.0,1e-08]
[1740471751067,0.15,90184.0,90178.0,1e-08]
[1740471751271,0.14223728,90184.0,90179.0,1e-08]
[1740471751469,0.14223728,90184.0,90180.0,1e-08]
[1740471751678,0.14223728,90184.0,90181.0,1e-08]
[1740471751878,0.14223728,90184.0,90182.0,1e-08]
[1740471752080,0.14223728,90184.0,90183.0,1e-08]
[1740471753665,0.13985246,90184.0,90183.0,1e-08]
[1740471755726,1.09953679,90185.0,90167.0,1e-08]
[1740471755901,1.09953679,90185.0,90168.0,1e-08]
[1740471756226,1.09953679,90185.0,90170.0,0.01454085]
[1740471756426,0.38379895,90204.0,90171.0,0.00155233]
[1740471756622,1.42743679,90204.0,90172.0,0.01454085]
[1740471756808,1.48333574,90204.0,90174.0,0.01454085]
[1740471757127,1.42743679,90204.0,90175.0,0.00155224]
[1740471757467,1.42743679,90204.0,90176.0,1e-08]
[1740471757468,0.0016962,90195.0,90176.0,1e-08]
[1740471757883,0.0016962,90195.0,90167.0,0.01454085]
[1740471758073,0.10295832,90203.0,90169.0,0.01454085]
[1740471758257,0.10295832,90203.0,90170.0,0.00155224]
[1740471758462,0.10295832,90203.0,90171.0,0.01454086]
[1740471758664,0.10295832,90203.0,90173.0,0.01454085]
[1740471758877,0.10295832,90203.0,90175.0,0.01454085]
[1740471759109,0.10295832,90203.0,90176.0,0.0015522]
[1740471759314,0.08943444,90193.0,90176.0,1e-08]
[1740471759463,1.18897123,90193.0,90166.0,1e-08]
[1740471759642,0.0773,90192.0,90167.0,1e-08]
[1740471760010,0.34848622,90191.0,90166.0,1e-08]
[1740471760210,0.15,90190.0,90165.0,0.0008481]
[1740471760358,0.15,90190.0,90166.0,1e-08]
[1740471760558,0.15,90190.0,90165.0,0.0008481]
[1740471760804,0.14806716,90190.0,90166.0,1e-08]
[1740471761335,0.11002066,90189.0,90166.0,1e-08]
[1740471762044,0.3759,90188.0,90166.0,1e-08]
[1740471762239,0.08943444,90179.0,90166.0,1e-08]
[1740471762449,0.3279,90178.0,90166.0,1e-08]
[1740471762621,0.0824,90177.0,90166.0,1e-08]
[1740471762831,0.26538862,90177.0,90166.0,1e-08]
[1740471763001,0.15,90175.0,90130.0,0.0008479]
[1740471763180,0.3279,90174.0,90145.0,0.03363886]
[1740471763380,0.34609668,90174.0,90145.0,0.03113886]
[1740471763581,0.34609668,90174.0,90146.0,0.03113886]
[1740471763848,0.10806897,90173.0,90131.0,0.03113886]
[1740471764064,0.10806897,90173.0,90145.0,0.03113886]
[1740471764267,0.02058622,90172.0,90131.0,0.03113886]
[1740471764485,0.02058622,90172.0,90145.0,0.03113886]
[1740471764659,0.02058622,90172.0,90130.0,0.0008479]
[1740471764834,0.13510369,90172.0,90145.0,0.03113886]
[1740471765043,0.15,90170.0,90130.0,0.0008479]
[1740471765203,0.05539406,90169.0,90145.0,0.03113886]
[1740471765404,0.15,90168.0,90146.0,0.03113886]
[1740471765608,0.20553289,90168.0,90147.0,0.03113886]
[1740471765858,0.15,90168.0,90148.0,0.03113886]
[1740471766181,0.1497573,90168.0,90149.0,0.03113886]
[1740471766501,0.1497573,90168.0,90150.0,0.03113886]
[1740471766684,0.20529019,90168.0,90150.0,0.03113886]
[1740471766897,0.20529019,90168.0,90151.0,0.03113886]
[1740471767069,0.20529019,90168.0,90152.0,0.03113886]
[1740471767275,0.32551046,90167.0,90153.0,0.03113886]
[1740471767485,0.05533861,90166.0,90130.0,0.03198676]
[1740471767686,0.32551046,90167.0,90145.0,0.03113886]
[1740471768026,0.32551046,90167.0,90146.0,0.03113886]
[1740471768209,0.15,90166.0,90130.0,0.03198676]
[1740471768365,0.15,90166.0,90145.0,0.03113886]
[1740471768566,0.15,90166.0,90131.0,0.03113886]
[1740471768771,0.15,90166.0,90145.0,0.03113886]
[1740471769023,0.15,90166.0,90146.0,0.03198706]
[1740471769242,0.0787,90165.0,90146.0,0.0008482]
[1740471769448,0.0787,90165.0,90147.0,0.02943886]
[1740471769449,0.07897082,90165.0,90147.0,0.02943886]
[1740471769598,0.07897082,90165.0,90146.0,0.0008482]
[1740471769806,0.10806897,90164.0,90147.0,0.02943886]
[1740471770004,0.10806897,90164.0,90146.0,0.0008482]
[1740471770228,0.10806897,90164.0,90147.0,0.02943886]
[1740471770436,0.00027082,90163.0,90146.0,0.0008482]
[1740471770641,0.15,90162.0,90130.0,0.0008479]
[1740471770814,0.15,90162.0,90145.0,0.03354203]
[1740471772676,0.15,90162.0,90146.0,0.00155306]
[1740471772826,1.09953679,90169.0,90147.0,0.03354203]
[1740471773042,1.09953679,90169.0,90148.0,0.00155279]
[1740471773043,0.15,90168.0,90148.0,0.00155279]
[1740471773225,0.15,90168.0,90149.0,0.03354203]
[1740471773976,0.15,90166.0,90150.0,0.03354203]
[1740471774258,0.15,90166.0,90145.0,0.03354203]
[1740471774499,0.15,90166.0,90146.0,0.03354203]
[1740471774664,0.15,90166.0,90130.0,0.0008479]
[1740471774665,0.15,90166.0,90145.0,0.03354203]
[1740471774817,0.15,90168.0,90146.0,0.03354203]
[1740471775030,0.15,90168.0,90147.0,0.03354203]
[1740471775227,0.20553289,90168.0,90145.0,0.03354203]
[1740471775426,0.20553289,90168.0,90146.0,0.03354203]
[1740471775691,0.20553289,90168.0,90145.0,0.03354203]
[1740471775895,0.20553289,90168.0,90146.0,0.03354203]
[1740471776051,0.15,90168.0,90145.0,0.03354203]
[1740471776261,0.47551046,90168.0,90145.0,0.03354203]
[1740471776956,0.58357943,90168.0,90145.0,0.03354203]
[1740471777513,0.47551046,90168.0,90145.0,0.03354203]
[1740471778699,0.47551046,90168.0,90146.0,0.00155291]
[1740471778953,0.47551046,90168.0,90147.0,0.03354203]
[1740471779082,0.47551046,90168.0,90148.0,0.00155275]
[1740471779286,0.47551046,90168.0,90149.0,0.03354203]
[1740471779754,0.47551046,90168.0,90145.0,0.03354203]
[1740471779880,0.47551046,90168.0,90146.0,0.03509478]
[1740471780086,0.47551046,90168.0,90147.0,0.03354203]
[1740471780293,0.15,90167.0,90148.0,0.03354203]
[1740471780531,0.15038802,90167.0,90149.0,0.03354203]
[1740471780747,0.15038802,90167.0,90145.0,0.03354203]
[1740471780948,0.15,90167.0,90146.0,0.03509482]
[1740471781153,0.15,90167.0,90147.0,0.03354203]
[1740471781382,0.15,90167.0,90147.0,0.00155279]
[1740471781519,0.15,90167.0,90148.0,0.03354203]
[1740471781924,0.15,90167.0,90145.0,0.03354203]
[1740471782128,0.15,90167.0,90146.0,0.0015528]
[1740471782366,0.26827652,90168.0,90147.0,0.03354203]
[1740471782556,0.26827652,90168.0,90149.0,0.01454085]
[1740471782867,0.0016968,90168.0,90151.0,0.01454085]
[1740471783040,0.0016968,90168.0,90152.0,0.03354203]
[1740471783422,0.0016968,90168.0,90153.0,0.03354203]
[1740471783625,0.0016968,90168.0,90149.0,0.03354203]
[1740471783848,0.00664185,90168.0,90150.0,0.04289674]
[1740471784200,0.00664185,90168.0,90151.0,0.03509468]
[1740471784429,0.00664185,90168.0,90152.0,0.03354203]
[1740471784598,0.00664185,90168.0,90153.0,0.01609346]
[1740471784804,0.00664185,90168.0,90155.0,0.01454085]
[1740471785006,0.00664185,90168.0,90157.0,0.01454085]
[1740471785178,0.15664185,90168.0,90158.0,0.03354203]
[1740471785586,0.15664185,90168.0,90159.0,0.00155259]
[1740471785789,0.15664185,90168.0,90160.0,0.03354203]
[1740471786038,0.15664185,90168.0,90161.0,0.00155259]
[1740471786175,0.0016964,90184.0,90162.0,0.03924089]
[1740471786373,1.10123319,90184.0,90163.0,0.03509455]
[1740471786571,1.19066763,90184.0,90164.0,0.03354203]
[1740471786771,1.19066763,90184.0,90163.0,0.03354203]
[1740471787131,1.19066763,90184.0,90164.0,0.03354203]
[1740471787332,1.19066763,90184.0,90163.0,0.03354203]
[1740471787494,1.19066763,90184.0,90165.0,0.03354203]
[1740471787495,0.10806897,90183.0,90165.0,0.03354203]
[1740471787712,0.10849597,90183.0,90166.0,0.03354203]
[1740471788048,0.000427,90183.0,90167.0,0.03354203]
[1740471788192,0.150427,90183.0,90145.0,0.03354203]
[1740471788793,0.150427,90183.0,90146.0,0.0015528]
[1740471789066,0.150427,90183.0,90147.0,0.03354203]
[1740471789399,0.150427,90183.0,90144.0,0.0008481]
[1740471789400,0.150427,90183.0,90145.0,0.03354203]
[1740471789736,0.0468,90180.0,90146.0,0.03354203]
[1740471789879,0.0468,90180.0,90144.0,0.0008481]
[1740471789880,0.0468,90180.0,90145.0,0.03354203]
[1740471790083,0.08943444,90174.0,90145.0,0.03354203]
[1740471790293,0.1998,90172.0,90145.0,0.03354203]
[1740471790496,0.2278,90169.0,90145.0,0.03354203]
[1740471790705,0.2278,90161.0,90145.0,0.03354203]
[1740471791056,0.15,90159.0,90145.0,0.03354203]
[1740471791259,0.15,90157.0,90145.0,0.03354203]
[1740471791557,0.04556903,90156.0,90145.0,0.03354203]
[1740471791763,0.15,90155.0,90145.0,0.03354203]
[1740471792119,0.00046903,90154.0,90145.0,0.03354203]
[1740471794446,0.04621488,90153.0,90145.0,0.03354203]
[1740471794646,0.15,90155.0,90145.0,0.03354203]
[1740471795241,0.00049527,90154.0,90145.0,0.03354203]
[1740471796288,0.083,90153.0,90145.0,0.03354203]
[1740471800610,0.15,90152.0,90145.0,0.03354203]
[1740471804156,0.15,90152.0,90145.0,0.03439043]
[1740471804360,0.15,90152.0,90146.0,0.03354203]
[1740471804703,0.15,90152.0,90145.0,0.0008484]
[1740471805346,1.1560356,90153.0,90145.0,0.0008484]
[1740471805524,0.38918954,90152.0,90130.0,0.0008479]
[1740471805724,0.28112057,90152.0,90131.0,0.03380086]
[1740471806404,0.0457,90149.0,90131.0,0.03380086]
[1740471806668,1.14523679,90149.0,90132.0,0.03230086]
[1740471807010,1.14523679,90149.0,90133.0,0.03230086]
[1740471807182,0.01454085,90147.0,90134.0,0.03380483]
[1740471807337,0.16454085,90147.0,90110.0,0.03380882]
[1740471807539,0.16454085,90145.0,90110.0,0.03380882]
[1740471808046,0.11627999,90145.0,90110.0,0.03380882]
[1740471808402,0.0816,90144.0,90110.0,0.03380882]
[1740471808688,0.04675902,90144.0,90111.0,0.00155362]
[1740471808982,0.04675902,90144.0,90112.0,0.03380882]
[1740471809211,0.04675902,90144.0,90110.0,0.03380882]
[1740471809396,0.10806897,90143.0,90111.0,0.03380882]
[1740471809549,1.20776575,90143.0,90137.0,0.09738215]
[1740471809754,1.09969678,90143.0,90138.0,0.03380882]
[1740471810153,0.15,90142.0,90137.0,0.09730679]
[1740471811457,0.15,90142.0,90108.0,0.000848]
[1740471811656,0.15,90140.0,90110.0,0.03379734]
[1740471811900,0.15,90138.0,90110.0,0.03379734]
[1740471812100,1.24953679,90138.0,90110.0,0.03379734]
[1740471813119,0.15,90136.0,90110.0,0.03379734]
[1740471814572,0.05569264,90135.0,90110.0,0.03379734]
[1740471815641,0.05569264,90135.0,90111.0,0.01623077]
[1740471815965,0.07444621,90134.0,90112.0,0.03379734]
[1740471816172,0.05513446,90133.0,90112.0,0.03379734]
[1740471816382,0.15,90132.0,90112.0,0.03379734]
[1740471816714,0.05500453,90131.0,90112.0,0.03379734]
[1740471817663,0.15,90129.0,90112.0,0.03379734]
[1740471818080,0.15,90129.0,90113.0,0.01623077]
[1740471818289,0.15,90129.0,90114.0,0.03379734]
[1740471818493,0.26657972,90130.0,90114.0,0.03379734]
[1740471818655,1.09969678,90133.0,90114.0,0.03379734]
[1740471819112,1.09969678,90133.0,90115.0,0.01319728]
[1740471819455,1.09969678,90133.0,90117.0,0.01454085]
[1740471819590,1.09969678,90133.0,90120.0,0.0793]
[1740471819791,1.09969678,90133.0,90115.0,0.35292805]
[1740471819792,1.09969678,90133.0,90123.0,0.01454085]
[1740471820020,1.09969678,90133.0,90125.0,0.09244085]
[1740471820225,1.09969678,90133.0,90126.0,0.09373006]
[1740471820425,1.09969678,90133.0,90127.0,0.03379734]
[1740471821004,0.15,90132.0,90128.0,0.03379734]
[1740471821233,0.15,90132.0,90129.0,0.03379734]
[1740471821563,0.15,90132.0,90130.0,0.03379734]
[1740471821703,0.15,90132.0,90128.0,0.03379734]
[1740471821905,0.15,90132.0,90129.0,0.05144015]
[1740471822107,0.15,90132.0,90130.0,0.03379734]
[1740471822385,0.15,90132.0,90131.0,0.03379734]
[1740471822555,0.15,90132.0,90128.0,0.03379734]
[1740471822883,0.15,90132.0,90129.0,0.03379734]
[1740471823259,0.15,90132.0,90131.0,0.01623077]
[1740471823591,0.15,90132.0,90131.0,0.05002811]
[1740471823807,0.15,90132.0,90131.0,0.03379734]
[1740471824416,0.15,90132.0,90131.0,0.05002811]
[1740471828326,0.15052686,90132.0,90131.0,0.05002811]
[1740471828661,0.65052686,90132.0,90131.0,0.05002811]
[1740471830765,0.65052686,90132.0,90131.0,0.05087681]
[1740471838296,0.65088165,90132.0,90131.0,0.05087681]
[1740471841307,0.75895062,90132.0,90110.0,0.0008487]
[1740471841511,0.75806897,90132.0,90111.0,0.0340827]
[1740471841725,0.2299,90130.0,90111.0,0.0340827]
[1740471842306,0.00088165,90129.0,90111.0,0.0340827]
[1740471842639,0.15,90128.0,90111.0,0.0340827]
[1740471843019,0.15088165,90127.0,90111.0,0.0340827]
[1740471843399,0.00020336,90126.0,90111.0,0.0340827]
[1740471844022,0.00020336,90126.0,90111.0,0.0349314]
[1740471844231,0.00020336,90126.0,90112.0,0.0340827]
[1740471844428,0.02593925,90125.0,90112.0,0.0340827]
[1740471844807,0.00108501,90124.0,90112.0,0.0340827]
[1740471846499,0.15,90127.0,90112.0,0.0340827]
[1740471848763,0.00119319,90126.0,90112.0,0.0340827]
[1740471849506,1.09953679,90126.0,90112.0,0.0340827]
[1740471852261,0.15,90125.0,90112.0,0.0340827]
[1740471852460,1.24953679,90125.0,90112.0,0.0340827]
[1740471852803,1.09953679,90125.0,90112.0,0.0340827]
[1740471855189,0.15,90124.0,90112.0,0.0340827]
[1740471855537,0.15,90124.0,90112.0,0.0349314]
[1740471855745,0.15,90124.0,90113.0,0.0340827]
[1740471856145,1.09953679,90125.0,90113.0,0.0340827]
[1740471856375,1.09953679,90125.0,90115.0,0.01454085]
[1740471856583,1.09953679,90125.0,90117.0,0.01454085]
[1740471856710,1.09953679,90125.0,90119.0,0.01454085]
[1740471856912,0.5016974,90132.0,90123.0,0.01454085]
[1740471857135,0.5016974,90132.0,90122.0,0.16813444]
[1740471857136,0.22817553,90132.0,90131.0,0.01454085]
[1740471857335,0.22817553,90132.0,90131.0,1.03647653]
[1740471857336,1.22243038,90132.0,90131.0,1.03647653]
[1740471857536,1.21553328,90132.0,90131.0,1.03492355]
[1740471857741,1.21192245,90132.0,90131.0,1.03492355]
[1740471857977,1.14924655,90132.0,90131.0,1.03492355]
[1740471858205,0.59291877,90132.0,90131.0,2.01732355]
[1740471858327,0.001699,90207.0,90176.0,0.06]
[1740471858552,1.09989678,90200.0,90178.0,0.01454085]
[1740471858752,0.15,90199.0,90180.0,0.01454085]
[1740471858983,0.15,90199.0,90182.0,0.01454085]
[1740471859181,1.09989678,90200.0,90184.0,0.01454085]
[1740471859407,1.09989678,90200.0,90186.0,0.01454085]
[1740471859607,2.19943357,90200.0,90188.0,0.01454085]
[1740471859825,0.15,90199.0,90190.0,0.01454085]
[1740471860026,0.15,90199.0,90177.0,0.8663]
[1740471860027,0.15,90199.0,90191.0,0.0340827]
[1740471860203,2.19943357,90200.0,90192.0,0.0340827]
[1740471860426,2.19943357,90200.0,90193.0,0.0340827]
[1740471860632,0.08943444,90198.0,90194.0,0.0340827]
[1740471860806,0.08943444,90195.0,90162.0,0.00155234]
[1740471860986,0.08943444,90195.0,90163.0,0.03382047]
[1740471860987,0.08943444,90184.0,90163.0,0.03382047]
[1740471861186,2.28866801,90184.0,90164.0,0.03382047]
[1740471861569,2.28866801,90184.0,90165.0,0.03382047]
[1740471861770,2.28866801,90184.0,90158.0,0.03382047]
[1740471861977,0.05564136,90183.0,90159.0,0.03382047]
[1740471862254,0.05564136,90183.0,90142.0,0.03382047]
[1740471862255,0.0550064,90181.0,90142.0,0.03382047]
[1740471862566,0.0550064,90181.0,90143.0,0.03537329]
[1740471862708,0.0550064,90181.0,90144.0,0.03382047]
[1740471862914,0.15,90179.0,90144.0,0.03382047]
[1740471863268,0.1952,90177.0,90145.0,0.03382047]
[1740471863677,0.1952,90177.0,90146.0,0.03382047]
[1740471863834,0.53329249,90176.0,90125.0,0.03382047]
[1740471864035,0.05504344,90162.0,90126.0,0.3235]
[1740471864265,0.0483,90159.0,90127.0,0.03382047]
[1740471864481,0.20511971,90158.0,90128.0,0.03382047]
[1740471864684,0.20511971,90158.0,90113.0,0.03382047]
[1740471864886,0.20511971,90158.0,90114.0,0.03537373]
[1740471865088,0.03771656,90157.0,90115.0,0.03382047]
[1740471865287,0.05539443,90156.0,90116.0,0.00155326]
[1740471865490,0.05539443,90156.0,90117.0,0.03382047]
[1740471865692,0.05539443,90156.0,90118.0,0.00155326]
[1740471865916,0.05539443,90156.0,90119.0,0.03382047]
[1740471866102,0.05539443,90156.0,90120.0,0.00155326]
[1740471866296,0.05579757,90154.0,90121.0,0.03382047]
[1740471866497,0.05579757,90154.0,90113.0,0.03382047]
[1740471866698,0.2296,90153.0,90114.0,0.03382047]
[1740471866875,0.2296,90153.0,90113.0,0.03382047]
[1740471866876,0.05543629,90149.0,90113.0,0.03382047]
[1740471867078,0.05531248,90147.0,90113.0,0.03382047]
[1740471867439,0.1288,90146.0,90113.0,0.03382047]
[1740471867578,0.2788,90146.0,90113.0,0.03382047]
[1740471868125,0.20514608,90145.0,90113.0,0.03382047]
[1740471868354,0.05576267,90144.0,90113.0,0.03382047]
[1740471868482,0.05510432,90142.0,90113.0,0.03382047]
[1740471869472,0.0776,90141.0,90113.0,0.03382047]
[1740471869668,0.05590487,90140.0,90113.0,0.03382047]
[1740471869825,0.05546096,90138.0,90113.0,0.03382047]
[1740471870168,1.09969678,90138.0,90113.0,0.03382047]
[1740471870325,0.05546272,90137.0,90114.0,0.00155363]
[1740471870663,0.05546272,90137.0,90115.0,0.03382047]
[1740471870931,0.20546272,90137.0,90116.0,0.03382047]
[1740471871044,0.20546272,90137.0,90117.0,0.00155335]
[1740471871263,0.20546272,90137.0,90118.0,0.03382047]
[1740471871467,0.05546272,90137.0,90119.0,0.00155335]
[1740471871684,0.05559327,90137.0,90120.0,0.03382047]
[1740471871903,0.05559327,90137.0,90121.0,0.03382047]
[1740471871904,0.05597659,90137.0,90121.0,0.03382047]
[1740471872101,0.20597659,90137.0,90122.0,0.03382047]
[1740471872308,0.20597659,90137.0,90123.0,0.03382047]
[1740471872550,0.20597659,90137.0,90124.0,0.03382047]
[1740471872753,0.20597659,90137.0,90125.0,0.03382047]
[1740471872948,0.20597659,90137.0,90113.0,0.03382047]
[1740471873150,0.20597659,90137.0,90126.0,0.03382047]
[1740471873359,0.20597659,90137.0,90127.0,0.03382047]
[1740471873598,0.20597659,90137.0,90113.0,0.03382047]
[1740471873801,1.15519464,90137.0,90114.0,0.03382047]
[1740471874006,0.10806897,90136.0,90113.0,0.03382047]
[1740471874197,0.05538511,90135.0,90114.0,0.03382047]
[1740471874534,0.05538511,90135.0,90115.0,0.03382047]
[1740471874740,0.05538511,90135.0,90116.0,0.03382047]
[1740471874939,0.05538511,90135.0,90117.0,0.03382047]
[1740471875144,0.05526748,90136.0,90118.0,0.03382047]
[1740471875355,0.05526748,90136.0,90119.0,0.03382047]
[1740471875701,0.05526748,90136.0,90120.0,0.03382047]
[1740471876003,0.20526748,90136.0,90121.0,0.03382047]
[1740471876215,0.20526748,90136.0,90113.0,0.03382047]
[1740471876420,0.20526748,90136.0,90114.0,0.03382047]
[1740471876625,0.20526748,90136.0,90113.0,0.03382047]
[1740471876828,0.20526748,90136.0,90114.0,0.03382047]
[1740471876971,0.20526748,90136.0,90113.0,0.03382047]
[1740471877178,0.20526748,90136.0,90113.0,0.03362047]
[1740471877391,0.20526748,90136.0,90114.0,0.03362047]
[1740471877591,0.20526748,90136.0,90113.0,0.03362047]
[1740471877892,0.20526748,90136.0,90114.0,0.03362047]
[1740471878115,0.22305207,90136.0,90113.0,0.03362047]
[1740471878315,0.22305207,90136.0,90114.0,0.03362047]
[1740471878491,0.22305207,90136.0,90113.0,0.03362047]
[1740471878695,0.2050824,90132.0,90113.0,0.03362047]
[1740471878918,0.20569033,90130.0,90113.0,0.03362047]
[1740471879118,0.20590818,90128.0,90113.0,0.03362047]
[1740471879283,1.30560496,90128.0,90113.0,0.03362047]
[1740471880417,1.30560496,90128.0,90113.0,0.03446867]
[1740471880622,1.09969678,90128.0,90114.0,0.03362047]
[1740471881239,0.05572315,90127.0,90114.0,0.03362047]
[1740471881431,1.09953679,90127.0,90115.0,0.00155359]
[1740471881632,1.09953679,90127.0,90116.0,0.03362047]
[1740471881788,0.05580217,90126.0,90114.0,0.03362047]
[1740471882900,0.20501362,90125.0,90114.0,0.03362047]
[1740471883130,1.09953679,90127.0,90114.0,0.03517384]
[1740471883327,1.09953679,90127.0,90115.0,0.03362047]
[1740471883527,1.09953679,90127.0,90116.0,0.00155334]
[1740471883762,0.15,90126.0,90117.0,0.03362047]
[1740471883953,1.59969678,90128.0,90118.0,0.01609416]
[1740471884123,0.15,90125.0,90119.0,0.03362047]